[Event "*** Titled Tuesday Blitz"]
[Site "Chess.com"]
[Date "2021.04.27"]
[Round "5"]
[White "volkanyirik"]
[Black "volunteers1998"]
[Result "1-0"]
[WhiteElo "2419"]
[BlackElo "2208"]
[TimeControl "180+1"]
[EndTime "10:55:44 PDT"]
[Termination "volkanyirik won on time"]

1. e4 {[%clk 0:03:00.9]} 1... c5 {[%clk 0:02:57.5]} 2. Nc3 {[%clk 0:03:01.8]}
2... Nc6 {[%clk 0:02:55.2]} 3. f4 {[%clk 0:03:01.7]} 3... e6 {[%clk 0:02:50.8]}
4. Bc4 {[%clk 0:03:01.8]} 4... d6 {[%clk 0:02:42.1]} 5. Nf3 {[%clk 0:02:54.3]}
5... Nf6 {[%clk 0:02:37.4]} 6. O-O {[%clk 0:02:54.7]} 6... Be7 {[%clk
0:02:34.1]} 7. d3 {[%clk 0:02:54.6]} 7... O-O {[%clk 0:02:31.7]} 8. Qe1 {[%clk
0:02:55]} 8... d5 {[%clk 0:02:28.4]} 9. Bb3 {[%clk 0:02:54.5]} 9... d4 {[%clk
0:02:24.8]} 10. Ne2 {[%clk 0:02:53.8]} 10... Rb8 {[%clk 0:02:20.9]} 11. a4
{[%clk 0:02:52.2]} 11... a6 {[%clk 0:02:16.1]} 12. Qg3 {[%clk 0:02:49]} 12... b5
{[%clk 0:02:11.3]} 13. axb5 {[%clk 0:02:48.7]} 13... axb5 {[%clk 0:02:09.8]} 14.
Bd2 {[%clk 0:02:46.1]} 14... Ne8 {[%clk 0:01:53.3]} 15. Qh3 {[%clk 0:02:38.7]}
15... e5 {[%clk 0:01:46.4]} 16. f5 {[%clk 0:02:38.7]} 16... Bd7 {[%clk
0:01:27.6]} 17. Ng3 {[%clk 0:02:23.2]} 17... Ra8 {[%clk 0:01:22.6]} 18. Nh5
{[%clk 0:02:18.9]} 18... Rxa1 {[%clk 0:01:18.8]} 19. Rxa1 {[%clk 0:02:18.4]}
19... Kh8 {[%clk 0:01:11]} 20. g4 {[%clk 0:02:00]} 20... Nf6 {[%clk 0:01:02.8]}
21. Nxf6 {[%clk 0:01:57.2]} 21... Bxf6 {[%clk 0:00:57.8]} 22. g5 {[%clk
0:01:56.2]} 22... Be7 {[%clk 0:00:56.6]} 23. Qh5 {[%clk 0:01:24.3]} 23... Qe8
{[%clk 0:00:47.5]} 24. Kh1 {[%clk 0:01:12.6]} 24... g6 {[%clk 0:00:40.9]} 25.
Qh3 {[%clk 0:00:53.5]} 25... c4 {[%clk 0:00:31.5]} 26. dxc4 {[%clk 0:00:51.1]}
26... b4 {[%clk 0:00:31.1]} 27. Nh4 {[%clk 0:00:47.9]} 27... Bc5 {[%clk
0:00:21.2]} 28. Qf3 {[%clk 0:00:43.2]} 28... gxf5 {[%clk 0:00:12.6]} 29. Nxf5
{[%clk 0:00:43.1]} 29... Qe6 {[%clk 0:00:09.3]} 30. Rf1 {[%clk 0:00:41.1]} 30...
Na5 {[%clk 0:00:05.7]} 31. Nh6 {[%clk 0:00:35.5]} 31... Nxb3 {[%clk 0:00:01.7]}
32. cxb3 {[%clk 0:00:34.9]} 1-0

[Event "*** Titled Tuesday Blitz"]
[Site "Chess.com"]
[Date "2021.04.27"]
[Round "5"]
[White "exoticprincess"]
[Black "Gloomy_Wanderer"]
[Result "0-1"]
[WhiteElo "2912"]
[BlackElo "2731"]
[TimeControl "180+1"]
[EndTime "10:55:47 PDT"]
[Termination "Gloomy_Wanderer won by resignation"]

1. b3 {[%clk 0:03:00.9]} 1... d5 {[%clk 0:02:56.1]} 2. Bb2 {[%clk 0:03:01.8]}
2... c5 {[%clk 0:02:56.5]} 3. e3 {[%clk 0:03:01.1]} 3... Nf6 {[%clk 0:02:56.8]}
4. f4 {[%clk 0:02:58]} 4... Nc6 {[%clk 0:02:56.5]} 5. Nf3 {[%clk 0:02:57.5]}
5... Bg4 {[%clk 0:02:49.7]} 6. Be2 {[%clk 0:02:54.4]} 6... g6 {[%clk 0:02:48.8]}
7. O-O {[%clk 0:02:52.6]} 7... Bxf3 {[%clk 0:02:48.4]} 8. Bxf3 {[%clk
0:02:52.6]} 8... Bg7 {[%clk 0:02:48.2]} 9. Kh1 {[%clk 0:02:51.8]} 9... O-O
{[%clk 0:02:48.1]} 10. d3 {[%clk 0:02:48.7]} 10... Re8 {[%clk 0:02:41.3]} 11.
Nd2 {[%clk 0:02:14.6]} 11... e5 {[%clk 0:02:40.1]} 12. Rb1 {[%clk 0:01:51.8]}
12... Qc7 {[%clk 0:02:22]} 13. g3 {[%clk 0:01:44.4]} 13... Rad8 {[%clk 0:02:07]}
14. Bg2 {[%clk 0:01:44.2]} 14... exf4 {[%clk 0:02:04.5]} 15. exf4 {[%clk
0:01:43.7]} 15... Qc8 {[%clk 0:01:59.5]} 16. Bxf6 {[%clk 0:01:30.5]} 16... Bxf6
{[%clk 0:01:58.7]} 17. a4 {[%clk 0:01:24.2]} 17... Nd4 {[%clk 0:01:56.1]} 18. g4
{[%clk 0:01:15.2]} 18... Ne2 {[%clk 0:01:49.9]} 19. g5 {[%clk 0:01:02.5]} 19...
Bg7 {[%clk 0:01:35.8]} 20. f5 {[%clk 0:01:02.4]} 20... Nc3 {[%clk 0:01:35.6]}
21. Qf3 {[%clk 0:01:02]} 21... Nxb1 {[%clk 0:01:33.1]} 22. fxg6 {[%clk
0:00:57.2]} 22... fxg6 {[%clk 0:01:31.6]} 23. Rxb1 {[%clk 0:00:52.4]} 23... Qe6
{[%clk 0:01:14]} 24. Nf1 {[%clk 0:00:36.4]} 24... Rf8 {[%clk 0:01:10]} 25. Qg3
{[%clk 0:00:31.3]} 25... Rde8 {[%clk 0:01:07.4]} 26. c4 {[%clk 0:00:28.5]} 26...
dxc4 {[%clk 0:01:06.3]} 27. bxc4 {[%clk 0:00:29.2]} 27... Qe2 {[%clk 0:00:58.2]}
28. Qh3 {[%clk 0:00:28.5]} 28... b6 {[%clk 0:00:46.5]} 29. Ng3 {[%clk
0:00:18.3]} 29... Qxd3 {[%clk 0:00:44.7]} 30. Rc1 {[%clk 0:00:15.3]} 30... Qd2
{[%clk 0:00:40.4]} 31. Rb1 {[%clk 0:00:12.4]} 31... Re1+ {[%clk 0:00:39.7]} 32.
Rxe1 {[%clk 0:00:11.6]} 32... Qxe1+ {[%clk 0:00:40.6]} 33. Nf1 {[%clk
0:00:12.4]} 33... Bd4 {[%clk 0:00:36.5]} 34. Qd3 {[%clk 0:00:10.8]} 34... Qf2
{[%clk 0:00:34.6]} 0-1

[Event "*** Titled Tuesday Blitz"]
[Site "Chess.com"]
[Date "2021.04.27"]
[Round "5"]
[White "Ermito2020"]
[Black "Msb2"]
[Result "0-1"]
[WhiteElo "2614"]
[BlackElo "2889"]
[TimeControl "180+1"]
[EndTime "10:55:50 PDT"]
[Termination "Msb2 won by resignation"]

1. e4 {[%clk 0:03:00.5]} 1... c6 {[%clk 0:02:59.9]} 2. d4 {[%clk 0:02:59.9]}
2... d5 {[%clk 0:02:59.7]} 3. e5 {[%clk 0:03:00.1]} 3... Bf5 {[%clk 0:02:58.9]}
4. Nf3 {[%clk 0:02:56.7]} 4... e6 {[%clk 0:02:58.2]} 5. Be2 {[%clk 0:02:56.9]}
5... c5 {[%clk 0:02:58.5]} 6. Be3 {[%clk 0:02:56.4]} 6... Nd7 {[%clk 0:02:59.1]}
7. O-O {[%clk 0:02:54.6]} 7... Ne7 {[%clk 0:02:56.1]} 8. c4 {[%clk 0:02:54]}
8... dxc4 {[%clk 0:02:55.1]} 9. Na3 {[%clk 0:02:52.4]} 9... c3 {[%clk
0:02:55.5]} 10. bxc3 {[%clk 0:02:37.2]} 10... Nd5 {[%clk 0:02:50.7]} 11. Bg5
{[%clk 0:02:32.1]} 11... Be7 {[%clk 0:02:47.8]} 12. Bxe7 {[%clk 0:02:31.2]}
12... Qxe7 {[%clk 0:02:48.7]} 13. Nb5 {[%clk 0:02:28.8]} 13... O-O {[%clk
0:02:46.2]} 14. c4 {[%clk 0:02:23.2]} 14... Nf4 {[%clk 0:02:35.3]} 15. Nd6
{[%clk 0:02:22.9]} 15... cxd4 {[%clk 0:02:30.9]} 16. Nxd4 {[%clk 0:02:12.9]}
16... Nxe5 {[%clk 0:02:24.1]} 17. N4xf5 {[%clk 0:02:12.2]} 17... exf5 {[%clk
0:02:25]} 18. Nxf5 {[%clk 0:02:12.3]} 18... Qg5 {[%clk 0:02:08.9]} 19. Ng3
{[%clk 0:02:09.7]} 19... Rad8 {[%clk 0:02:05.6]} 20. Qb3 {[%clk 0:01:50.9]}
20... h5 {[%clk 0:01:43.1]} 21. h4 {[%clk 0:00:56.5]} 21... Qxh4 {[%clk
0:01:41.9]} 22. Qxb7 {[%clk 0:00:55.5]} 22... Qg5 {[%clk 0:01:41.4]} 23. Bd1
{[%clk 0:00:41.9]} 23... h4 {[%clk 0:01:34.3]} 24. Ne2 {[%clk 0:00:27]} 24...
Rxd1 {[%clk 0:01:30.5]} 25. Rfxd1 {[%clk 0:00:26.9]} 25... Nxe2+ {[%clk
0:01:30.5]} 26. Kf1 {[%clk 0:00:27.8]} 26... Nf4 {[%clk 0:01:26]} 27. c5 {[%clk
0:00:27.7]} 27... Ng4 {[%clk 0:01:10.8]} 28. Qe4 {[%clk 0:00:24.9]} 28... h3
{[%clk 0:01:00.3]} 29. g3 {[%clk 0:00:17.6]} 29... Ne6 {[%clk 0:00:50.5]} 30.
Rd5 {[%clk 0:00:17.4]} 30... Qf6 {[%clk 0:00:50.7]} 31. Qxg4 {[%clk 0:00:11.3]}
31... Qxa1+ {[%clk 0:00:50.6]} 32. Rd1 {[%clk 0:00:11.6]} 32... Qxa2 {[%clk
0:00:45.5]} 33. Qxh3 {[%clk 0:00:11.8]} 33... Qc4+ {[%clk 0:00:45.5]} 34. Kg1
{[%clk 0:00:11.5]} 34... Qxc5 {[%clk 0:00:45.4]} 35. Qg4 {[%clk 0:00:11.8]}
35... Rd8 {[%clk 0:00:43.9]} 36. Ra1 {[%clk 0:00:10.3]} 36... Qd4 {[%clk
0:00:43.5]} 37. Rb1 {[%clk 0:00:09.6]} 37... Qxg4 {[%clk 0:00:43.2]} 0-1

[Event "*** Titled Tuesday Blitz"]
[Site "Chess.com"]
[Date "2021.04.27"]
[Round "5"]
[White "guillembaches"]
[Black "Chernov_Alexander_A"]
[Result "1-0"]
[WhiteElo "2510"]
[BlackElo "2326"]
[TimeControl "180+1"]
[EndTime "10:55:51 PDT"]
[Termination "guillembaches won on time"]

1. e4 {[%clk 0:03:00.9]} 1... c6 {[%clk 0:02:57.1]} 2. c4 {[%clk 0:03:00.7]}
2... d5 {[%clk 0:02:56.3]} 3. exd5 {[%clk 0:03:01.6]} 3... cxd5 {[%clk
0:02:56.3]} 4. cxd5 {[%clk 0:03:02.5]} 4... Nf6 {[%clk 0:02:55.8]} 5. Nc3 {[%clk
0:03:03.1]} 5... g6 {[%clk 0:02:55.7]} 6. Nf3 {[%clk 0:03:02.9]} 6... Bg7 {[%clk
0:02:55.4]} 7. Bc4 {[%clk 0:03:03.4]} 7... O-O {[%clk 0:02:55.3]} 8. O-O {[%clk
0:03:03.5]} 8... Nbd7 {[%clk 0:02:54.7]} 9. Qb3 {[%clk 0:03:03.3]} 9... Nb6
{[%clk 0:02:49.6]} 10. d3 {[%clk 0:03:03.1]} 10... a5 {[%clk 0:02:47.2]} 11. Be3
{[%clk 0:02:58.7]} 11... Nbd7 {[%clk 0:02:38.4]} 12. Rfe1 {[%clk 0:02:50.7]}
12... b6 {[%clk 0:02:34.7]} 13. Nd4 {[%clk 0:02:44.1]} 13... Nc5 {[%clk
0:02:29.2]} 14. Qa3 {[%clk 0:02:36.6]} 14... Bb7 {[%clk 0:02:13.6]} 15. Nc6
{[%clk 0:02:32]} 15... Qd6 {[%clk 0:02:04.3]} 16. Nb5 {[%clk 0:02:08.2]} 16...
Qd7 {[%clk 0:01:40.1]} 17. Bxc5 {[%clk 0:01:57.1]} 17... bxc5 {[%clk 0:01:22.5]}
18. Rxe7 {[%clk 0:01:50.8]} 18... Qf5 {[%clk 0:01:17.8]} 19. Rxb7 {[%clk
0:01:39.1]} 19... Qh5 {[%clk 0:01:11.5]} 20. h3 {[%clk 0:01:27.7]} 20... Qe2
{[%clk 0:00:48.7]} 21. Qb3 {[%clk 0:01:15.4]} 21... Nh5 {[%clk 0:00:46]} 22. d4
{[%clk 0:01:04.8]} 22... Qd2 {[%clk 0:00:38.3]} 23. Rd1 {[%clk 0:00:52.4]} 23...
Qg5 {[%clk 0:00:36.5]} 24. Qf3 {[%clk 0:00:48.8]} 24... cxd4 {[%clk 0:00:18]}
25. Nbxd4 {[%clk 0:00:45]} 25... a4 {[%clk 0:00:16.6]} 26. d6 {[%clk 0:00:43.1]}
26... Nf4 {[%clk 0:00:10.6]} 27. d7 {[%clk 0:00:35.7]} 27... h5 {[%clk
0:00:07.9]} 28. d8=Q {[%clk 0:00:32.8]} 28... Rfxd8 {[%clk 0:00:06.6]} 29. Nxd8
{[%clk 0:00:32.3]} 29... Rxd8 {[%clk 0:00:05.9]} 30. Rxf7 {[%clk 0:00:32.4]}
30... Kh8 {[%clk 0:00:04.4]} 31. Rxf4 {[%clk 0:00:32]} 31... Be5 {[%clk
0:00:02.1]} 32. Rf8+ {[%clk 0:00:30.5]} 1-0

[Event "*** Titled Tuesday Blitz"]
[Site "Chess.com"]
[Date "2021.04.27"]
[Round "5"]
[White "Trovita84"]
[Black "A-S-00"]
[Result "0-1"]
[WhiteElo "2147"]
[BlackElo "2325"]
[TimeControl "180+1"]
[EndTime "10:55:51 PDT"]
[Termination "A-S-00 won by resignation"]

1. e4 {[%clk 0:03:00.9]} 1... c5 {[%clk 0:02:57.8]} 2. Nc3 {[%clk 0:03:00.1]}
2... e6 {[%clk 0:02:57.1]} 3. g3 {[%clk 0:02:59.8]} 3... Nc6 {[%clk 0:02:56]} 4.
Bg2 {[%clk 0:03:00.6]} 4... g6 {[%clk 0:02:53]} 5. Nge2 {[%clk 0:02:58.1]} 5...
Bg7 {[%clk 0:02:50.4]} 6. O-O {[%clk 0:02:57.7]} 6... Nge7 {[%clk 0:02:48]} 7.
d3 {[%clk 0:02:54.4]} 7... O-O {[%clk 0:02:46.2]} 8. Be3 {[%clk 0:02:52.9]} 8...
b6 {[%clk 0:02:38.3]} 9. d4 {[%clk 0:02:49.1]} 9... cxd4 {[%clk 0:02:34.1]} 10.
Nxd4 {[%clk 0:02:50]} 10... Na5 {[%clk 0:01:26.9]} 11. f4 {[%clk 0:02:28.9]}
11... Ba6 {[%clk 0:01:19.7]} 12. Re1 {[%clk 0:02:28.1]} 12... Nc4 {[%clk
0:01:16]} 13. Bc1 {[%clk 0:02:25.7]} 13... Rc8 {[%clk 0:01:08.8]} 14. Kh1 {[%clk
0:02:24]} 14... d6 {[%clk 0:00:54.9]} 15. Rb1 {[%clk 0:02:07.6]} 15... Na3
{[%clk 0:00:49.5]} 16. bxa3 {[%clk 0:01:58.5]} 16... Rxc3 {[%clk 0:00:49]} 17.
Bb2 {[%clk 0:01:57.8]} 17... Rc8 {[%clk 0:00:45.6]} 18. Qd2 {[%clk 0:01:33.9]}
18... Qc7 {[%clk 0:00:40.6]} 19. Rbc1 {[%clk 0:01:33.1]} 19... Qc4 {[%clk
0:00:36.7]} 20. Bf1 {[%clk 0:01:28]} 20... Qa4 {[%clk 0:00:36.2]} 21. Bxa6
{[%clk 0:01:28]} 21... Qxa6 {[%clk 0:00:35]} 22. Qb4 {[%clk 0:01:15.2]} 22...
Rc4 {[%clk 0:00:29.9]} 23. Qxd6 {[%clk 0:01:15]} 23... Qb7 {[%clk 0:00:27.7]}
24. c3 {[%clk 0:01:04]} 24... Nc8 {[%clk 0:00:23.2]} 25. Qxf8+ {[%clk
0:00:49.6]} 25... Kxf8 {[%clk 0:00:20.3]} 26. h3 {[%clk 0:00:49.8]} 26... Nd6
{[%clk 0:00:19.9]} 27. Kh2 {[%clk 0:00:47.7]} 27... Nxe4 {[%clk 0:00:19.6]} 28.
a4 {[%clk 0:00:47.2]} 28... Nd2 {[%clk 0:00:16.7]} 29. Ba3+ {[%clk 0:00:46.7]}
29... Kg8 {[%clk 0:00:16.8]} 30. Re3 {[%clk 0:00:39.3]} 30... Bxd4 {[%clk
0:00:15.6]} 31. cxd4 {[%clk 0:00:40.2]} 31... Rxc1 {[%clk 0:00:14.6]} 32. Bxc1
{[%clk 0:00:41.1]} 32... Nf3+ {[%clk 0:00:14.7]} 33. Kh1 {[%clk 0:00:41.2]}
33... Nxd4+ {[%clk 0:00:14.9]} 34. Kg1 {[%clk 0:00:41.1]} 34... Qc6 {[%clk
0:00:14.3]} 35. Bd2 {[%clk 0:00:40.8]} 35... Nf3+ {[%clk 0:00:13.4]} 36. Kf2
{[%clk 0:00:40.7]} 36... Nxd2 {[%clk 0:00:13.6]} 37. Rd3 {[%clk 0:00:41.3]}
37... Ne4+ {[%clk 0:00:13.2]} 38. Ke3 {[%clk 0:00:41.7]} 38... Nc5 {[%clk
0:00:13.4]} 39. Rd8+ {[%clk 0:00:41.9]} 39... Kg7 {[%clk 0:00:13.9]} 0-1

[Event "*** Titled Tuesday Blitz"]
[Site "Chess.com"]
[Date "2021.04.27"]
[Round "5"]
[White "shreyansshah123"]
[Black "HanSchut"]
[Result "0-1"]
[WhiteElo "1693"]
[BlackElo "2288"]
[TimeControl "180+1"]
[EndTime "10:55:51 PDT"]
[Termination "HanSchut won by resignation"]

1. d4 {[%clk 0:03:00.9]} 1... Nf6 {[%clk 0:02:58.3]} 2. Nf3 {[%clk 0:03:01.3]}
2... g6 {[%clk 0:02:58.4]} 3. Bf4 {[%clk 0:03:01.3]} 3... Bg7 {[%clk 0:02:56.9]}
4. e3 {[%clk 0:03:01.8]} 4... d6 {[%clk 0:02:57.2]} 5. Bd3 {[%clk 0:03:02.3]}
5... Nh5 {[%clk 0:02:51.5]} 6. Bg3 {[%clk 0:03:00.9]} 6... Nxg3 {[%clk
0:02:49.7]} 7. hxg3 {[%clk 0:03:01.8]} 7... O-O {[%clk 0:02:50]} 8. Nbd2 {[%clk
0:03:00.5]} 8... Nc6 {[%clk 0:02:44.3]} 9. c3 {[%clk 0:02:59.9]} 9... e5 {[%clk
0:02:44.3]} 10. dxe5 {[%clk 0:02:54.8]} 10... dxe5 {[%clk 0:02:45.2]} 11. Bc2
{[%clk 0:02:52.7]} 11... h6 {[%clk 0:02:40.2]} 12. Qe2 {[%clk 0:02:36.4]} 12...
Be6 {[%clk 0:02:30.3]} 13. O-O-O {[%clk 0:02:35.6]} 13... Qe7 {[%clk 0:02:20.7]}
14. Bb3 {[%clk 0:02:29.2]} 14... Na5 {[%clk 0:02:09.3]} 15. Bxe6 {[%clk
0:02:27.5]} 15... Qxe6 {[%clk 0:02:09.7]} 16. Kb1 {[%clk 0:02:27]} 16... a6
{[%clk 0:02:04.1]} 17. Nh4 {[%clk 0:02:12.5]} 17... b5 {[%clk 0:01:59.6]} 18. g4
{[%clk 0:02:07]} 18... Rfb8 {[%clk 0:01:54.1]} 19. Ka1 {[%clk 0:02:05.2]} 19...
b4 {[%clk 0:01:48]} 20. c4 {[%clk 0:02:04.7]} 20... b3 {[%clk 0:01:48.4]} 21. a3
{[%clk 0:02:04.5]} 21... Qc6 {[%clk 0:01:42.7]} 22. Rc1 {[%clk 0:02:02.8]} 22...
Qa4 {[%clk 0:01:38.1]} 23. Qd1 {[%clk 0:01:58.8]} 23... Bf8 {[%clk 0:01:36.6]}
24. c5 {[%clk 0:01:47.4]} 24... Rb5 {[%clk 0:01:25.9]} 25. Ne4 {[%clk 0:01:41]}
25... Nc4 {[%clk 0:01:07.2]} 26. Kb1 {[%clk 0:01:37.1]} 26... Nxa3+ {[%clk
0:01:06.9]} 27. bxa3 {[%clk 0:01:37]} 27... Qxa3 {[%clk 0:01:00.7]} 28. Nc3
{[%clk 0:01:26.9]} 28... Rxc5 {[%clk 0:00:54.6]} 29. Qd2 {[%clk 0:01:19]} 29...
Rb8 {[%clk 0:00:46.6]} 30. Qb2 {[%clk 0:01:15.1]} 30... Qb4 {[%clk 0:00:41.7]}
31. Nf3 {[%clk 0:01:12.6]} 31... Bg7 {[%clk 0:00:33.3]} 32. g5 {[%clk
0:01:09.6]} 32... h5 {[%clk 0:00:32.8]} 33. Rhd1 {[%clk 0:01:07.8]} 33... a5
{[%clk 0:00:31.6]} 34. Nd5 {[%clk 0:01:04.7]} 34... Qe4+ {[%clk 0:00:21.6]} 35.
Ka1 {[%clk 0:00:54.5]} 35... Rxc1+ {[%clk 0:00:18.1]} 36. Rxc1 {[%clk
0:00:50.6]} 36... Qxd5 {[%clk 0:00:18.2]} 37. Rxc7 {[%clk 0:00:50.5]} 37... a4
{[%clk 0:00:17.2]} 38. Rc1 {[%clk 0:00:49.7]} 38... Qd6 {[%clk 0:00:16.1]} 39.
Kb1 {[%clk 0:00:49.4]} 39... a3 {[%clk 0:00:16.4]} 40. Qc3 {[%clk 0:00:49.2]}
40... Rd8 {[%clk 0:00:13]} 41. Qc7 {[%clk 0:00:48.2]} 41... Qd3+ {[%clk
0:00:12.6]} 42. Rc2 {[%clk 0:00:44.2]} 42... bxc2+ {[%clk 0:00:12.4]} 43. Ka2
{[%clk 0:00:43.1]} 43... Qd5+ {[%clk 0:00:10.1]} 44. Ka1 {[%clk 0:00:41.7]}
44... Qd1+ {[%clk 0:00:10.7]} 45. Ka2 {[%clk 0:00:41.7]} 45... c1=Q {[%clk
0:00:11.6]} 0-1

[Event "*** Titled Tuesday Blitz"]
[Site "Chess.com"]
[Date "2021.04.27"]
[Round "5"]
[White "aljado"]
[Black "paulrusan"]
[Result "0-1"]
[WhiteElo "2032"]
[BlackElo "2226"]
[TimeControl "180+1"]
[EndTime "10:55:51 PDT"]
[Termination "paulrusan won by checkmate"]

1. e4 {[%clk 0:03:00.9]} 1... c5 {[%clk 0:02:59.4]} 2. Nf3 {[%clk 0:03:00]} 2...
Nc6 {[%clk 0:02:57.6]} 3. d4 {[%clk 0:02:59.6]} 3... cxd4 {[%clk 0:02:57.8]} 4.
Nxd4 {[%clk 0:03:00]} 4... e5 {[%clk 0:02:57.7]} 5. Nf3 {[%clk 0:02:58]} 5...
Nf6 {[%clk 0:02:56.9]} 6. Nc3 {[%clk 0:02:57.2]} 6... Bb4 {[%clk 0:02:57.5]} 7.
Bd3 {[%clk 0:02:53.6]} 7... d5 {[%clk 0:02:58]} 8. exd5 {[%clk 0:02:47.7]} 8...
Nxd5 {[%clk 0:02:54.2]} 9. Bd2 {[%clk 0:02:47.2]} 9... Bxc3 {[%clk 0:02:53.6]}
10. bxc3 {[%clk 0:02:45.4]} 10... O-O {[%clk 0:02:52.9]} 11. O-O {[%clk
0:02:44]} 11... f5 {[%clk 0:02:50.6]} 12. Bc4 {[%clk 0:02:42]} 12... Kh8 {[%clk
0:02:48.4]} 13. Ng5 {[%clk 0:02:25.4]} 13... h6 {[%clk 0:01:37.1]} 14. Qh5
{[%clk 0:02:07.7]} 14... Nf6 {[%clk 0:01:26.2]} 15. Nf7+ {[%clk 0:01:27]} 15...
Rxf7 {[%clk 0:01:25.5]} 16. Qxf7 {[%clk 0:01:26.5]} 16... Qxd2 {[%clk
0:01:25.3]} 17. Rad1 {[%clk 0:01:10.4]} 17... Qxc3 {[%clk 0:01:25.3]} 18. Qf8+
{[%clk 0:01:08.6]} 18... Kh7 {[%clk 0:01:24.8]} 19. Bf7 {[%clk 0:01:08.6]} 19...
Qb4 {[%clk 0:01:04.2]} 20. Qxb4 {[%clk 0:01:00.8]} 20... Nxb4 {[%clk 0:01:03.2]}
21. Rd8 {[%clk 0:01:01.1]} 21... b6 {[%clk 0:01:01.3]} 22. c3 {[%clk 0:00:34.6]}
22... Nc6 {[%clk 0:01:00.1]} 23. Rd6 {[%clk 0:00:33.9]} 23... Na5 {[%clk
0:00:57.9]} 24. Re1 {[%clk 0:00:26.8]} 24... e4 {[%clk 0:00:56.1]} 25. h4 {[%clk
0:00:20]} 25... h5 {[%clk 0:00:53.9]} 26. f3 {[%clk 0:00:17.5]} 26... Bb7 {[%clk
0:00:41.3]} 27. fxe4 {[%clk 0:00:15.1]} 27... Bxe4 {[%clk 0:00:41]} 28. g4
{[%clk 0:00:12]} 28... hxg4 {[%clk 0:00:40.5]} 29. h5 {[%clk 0:00:11.4]} 29...
Rc8 {[%clk 0:00:37.3]} 30. Bg6+ {[%clk 0:00:11.1]} 30... Kh6 {[%clk 0:00:37.4]}
31. Kf2 {[%clk 0:00:10.4]} 31... Rxc3 {[%clk 0:00:35.8]} 32. Rd8 {[%clk
0:00:09.1]} 32... Kg5 {[%clk 0:00:35.7]} 33. Rd6 {[%clk 0:00:06.9]} 33... Nc4
{[%clk 0:00:34]} 34. Rd4 {[%clk 0:00:05.6]} 34... Rc2+ {[%clk 0:00:32.5]} 35.
Kg3 {[%clk 0:00:05.2]} 35... f4# {[%clk 0:00:31.1]} 0-1

[Event "*** Titled Tuesday Blitz"]
[Site "Chess.com"]
[Date "2021.04.27"]
[Round "5"]
[White "malakismayil"]
[Black "halldorgretar"]
[Result "1/2-1/2"]
[WhiteElo "2252"]
[BlackElo "2125"]
[TimeControl "180+1"]
[EndTime "10:55:53 PDT"]
[Termination "Game drawn by repetition"]

1. e4 {[%clk 0:02:58.3]} 1... e5 {[%clk 0:02:58.7]} 2. Nf3 {[%clk 0:02:53.8]}
2... Nc6 {[%clk 0:02:58]} 3. Bc4 {[%clk 0:02:53.4]} 3... Bc5 {[%clk 0:02:57]} 4.
d3 {[%clk 0:02:53.2]} 4... Nf6 {[%clk 0:02:52.9]} 5. O-O {[%clk 0:02:53]} 5...
d6 {[%clk 0:02:45.5]} 6. Be3 {[%clk 0:02:45.1]} 6... Bb6 {[%clk 0:02:42.7]} 7.
h3 {[%clk 0:02:37.6]} 7... O-O {[%clk 0:02:41.2]} 8. Nc3 {[%clk 0:02:35.6]} 8...
h6 {[%clk 0:02:32.1]} 9. Qd2 {[%clk 0:02:33.5]} 9... Kh7 {[%clk 0:02:07.1]} 10.
d4 {[%clk 0:02:21.5]} 10... exd4 {[%clk 0:01:59.3]} 11. Nxd4 {[%clk 0:02:22.4]}
11... Nxd4 {[%clk 0:01:47.5]} 12. Bxd4 {[%clk 0:02:20.8]} 12... Bxd4 {[%clk
0:01:45.2]} 13. Qxd4 {[%clk 0:02:21.7]} 13... a6 {[%clk 0:01:24.9]} 14. Rad1
{[%clk 0:02:15.2]} 14... b5 {[%clk 0:01:06.7]} 15. Bd3 {[%clk 0:02:02.5]} 15...
c5 {[%clk 0:01:02.2]} 16. e5+ {[%clk 0:02:01.3]} 16... g6 {[%clk 0:00:59.7]} 17.
Qxd6 {[%clk 0:01:58.6]} 17... Qxd6 {[%clk 0:00:55.8]} 18. exd6 {[%clk
0:01:59.5]} 18... c4 {[%clk 0:00:45.2]} 19. Be4 {[%clk 0:01:56.4]} 19... Nxe4
{[%clk 0:00:38.9]} 20. Nxe4 {[%clk 0:01:57.3]} 20... Bf5 {[%clk 0:00:37.2]} 21.
f3 {[%clk 0:01:48.2]} 21... Kg7 {[%clk 0:00:29.6]} 22. g4 {[%clk 0:01:40.8]}
22... Bxe4 {[%clk 0:00:23.4]} 23. fxe4 {[%clk 0:01:41.7]} 23... Rfe8 {[%clk
0:00:21.3]} 24. Rd4 {[%clk 0:01:33.2]} 24... Rad8 {[%clk 0:00:19.5]} 25. d7
{[%clk 0:01:23.6]} 25... Re7 {[%clk 0:00:19.5]} 26. Rfd1 {[%clk 0:01:23.2]}
26... Kf6 {[%clk 0:00:18.9]} 27. Kf2 {[%clk 0:01:20]} 27... Re6 {[%clk
0:00:16.2]} 28. Rd6 {[%clk 0:01:11.9]} 28... Ke7 {[%clk 0:00:16]} 29. R6d4
{[%clk 0:00:59.4]} 29... h5 {[%clk 0:00:11.5]} 30. gxh5 {[%clk 0:00:48.7]} 30...
gxh5 {[%clk 0:00:11.4]} 31. Kf3 {[%clk 0:00:48.8]} 31... Rf6+ {[%clk 0:00:10.3]}
32. Ke3 {[%clk 0:00:48.7]} 32... Rg6 {[%clk 0:00:10.1]} 33. Kf3 {[%clk
0:00:31.4]} 33... Rf6+ {[%clk 0:00:10.1]} 34. Ke2 {[%clk 0:00:30.9]} 34... Rg6
{[%clk 0:00:09.7]} 35. Kf3 {[%clk 0:00:26]} 35... Rf6+ {[%clk 0:00:09.9]}
1/2-1/2